bitfinex-derivatives/quotes_ETHF0:USTF0_20240925
["timestamp","ask_amount","ask_price","bid_price","bid_amount"]
[1727291335015,0.38638,2588.2,2588.1,1.16329]
[1727291335214,0.78427,2588.3,2588.1,1.16329]
[1727291335415,0.78427,2588.3,2588.2,0.38638]
[1727291335816,0.78427,2588.3,2588.1,1.16329]
[1727291336817,0.38638,2588.2,2588.1,1.16329]
[1727291337216,0.38638,2588.2,2588.1,0.7769]
[1727291337413,0.38641,2588.0,2587.9,1.074]
[1727291337614,0.38641,2588.0,2587.9,1.46043]
[1727291337812,0.38641,2588.0,2587.9,4.938]
[1727291338119,0.96601,2588.1,2587.8,4.2818]
[1727291338317,0.38642,2588.0,2587.8,4.66823]
[1727291338519,0.76882,2588.0,2587.8,4.66823]
[1727291339222,0.38643,2587.9,2587.8,4.2818]
[1727291339413,0.38643,2587.9,2587.8,4.66824]
[1727291339615,0.38643,2587.9,2587.8,3.2078]
[1727291339810,1.35251,2587.9,2587.8,3.2078]
[1727291340519,0.38643,2587.9,2587.8,3.2078]
[1727291342318,0.38643,2587.9,2587.8,3.59424]
[1727291342523,0.38643,2587.9,2587.8,3.2078]
[1727291342824,0.38643,2587.9,2587.8,3.59424]
[1727291346408,0.38643,2587.9,2587.8,3.2078]
[1727291346813,0.38643,2587.9,2587.8,3.59424]
[1727291347625,0.38643,2587.9,2587.8,3.2078]
[1727291347926,0.38643,2587.9,2587.8,3.59424]
[1727291349322,0.38643,2587.9,2587.8,3.2078]
[1727291349527,0.38643,2587.9,2587.8,3.59424]
[1727291350422,3.2078,2588.8,2587.8,10.0918]
[1727291350640,3.2078,2588.8,2588.2,3.02]
[1727291350641,0.78498,2588.3,2588.2,3.02]
[1727291350925,0.78498,2588.3,2588.2,0.38638]
[1727291351823,0.38638,2588.2,2588.1,2.7]
[1727291352026,2.31859,2587.9,2587.8,1.00548677]
[1727291352219,0.96615,2587.7,2587.3,4.21328677]
[1727291352522,0.38649,2587.5,2587.3,4.21328677]
[1727291352726,0.38648,2587.6,2587.3,4.21328677]
[1727291352926,2.12274,2587.8,2587.4,1.00548677]
[1727291353125,2.12274,2587.8,2587.4,0.3865]
[1727291353126,0.38648,2587.6,2587.4,0.3865]
[1727291353326,2.12274,2587.8,2587.5,0.38647]
[1727291353327,0.38646,2587.7,2587.5,0.38647]
[1727291353518,0.38646,2587.7,2587.6,3.2078]
[1727291354027,0.38646,2587.7,2587.5,0.38648]
[1727291357321,1.1566,2587.8,2587.3,3.2078]
[1727291357322,1.54304,2587.8,2587.3,3.2078]
[1727291357521,0.7726,2587.8,2587.7,0.38646]
[1727291358145,0.7726,2587.8,2587.7,0.75606]
[1727291359325,0.3974,2587.8,2587.7,0.75606]
[1727291360123,0.77051,2588.1,2588.0,0.38641]
[1727291360631,0.3841,2588.1,2588.0,0.38641]
[1727291361331,0.7619,2588.1,2588.0,0.38641]
[1727291362626,1.1483,2588.1,2588.0,0.38641]
[1727291363731,0.3778,2588.1,2588.0,0.38641]
[1727291363922,0.3778,2588.1,2588.0,0.75751]
[1727291364323,0.3801,2588.4,2588.0,4.2351]
[1727291364528,0.7696,2588.4,2588.2,3.59417]
[1727291364730,1.15596,2588.4,2588.2,3.2078]
[1727291365029,1.15596,2588.4,2588.2,0.38638]
[1727291365229,0.38637,2588.3,2588.2,0.38638]
[1727291365416,0.7696,2588.4,2588.2,0.38638]
[1727291366031,1.15597,2588.4,2588.2,0.38638]
[1727291366433,0.38637,2588.3,2588.2,0.38638]
[1727291367134,0.38637,2588.3,2588.1,4.58378677]
[1727291367427,1.15596,2588.4,2588.2,0.38637]
[1727291367633,0.38637,2588.3,2588.2,0.38637]
[1727291368237,1.15596,2588.4,2588.2,0.38637]
[1727291368944,0.38637,2588.3,2588.1,3.96469]
[1727291370232,0.38637,2588.3,2588.2,0.38638]
[1727291370435,0.38637,2588.3,2588.1,3.96469]
[1727291370930,0.38637,2588.3,2588.2,0.38638]
[1727291371136,0.38637,2588.3,2588.2,0.78138]
[1727291371432,1.15596,2588.4,2588.2,0.78138]
[1727291371639,1.15596,2588.4,2588.3,0.38637]
[1727291371838,1.15596,2588.4,2588.2,0.78138]
[1727291372040,0.38637,2588.3,2588.2,0.395]
[1727291372537,3.7896,2588.4,2588.1,3.59419]
[1727291372744,3.7896,2588.4,2588.1,3.96509]
[1727291373735,0.38638,2588.2,2588.1,3.2078]
[1727291373937,0.38638,2588.2,2588.0,0.3864]
[1727291373938,0.38638,2588.2,2588.0,0.38641]
[1727291374143,0.38638,2588.2,2587.8,4.21328677]
[1727291374144,0.96597,2588.2,2587.8,4.21328677]
[1727291374343,0.38642,2588.0,2587.9,0.38643]
[1727291374537,0.38642,2588.0,2587.8,3.99293]
[1727291374735,0.79473,2587.9,2587.8,3.99293]
[1727291374937,0.79473,2587.9,2587.8,3.2078]
[1727291375136,0.79473,2587.9,2587.8,3.59424]
[1727291375336,0.79473,2587.9,2587.8,3.2078]
[1727291375533,1.18233,2587.9,2587.8,3.2078]
[1727291375739,1.18233,2587.9,2587.3,1.00548677]
[1727291375740,0.3865,2587.4,2587.3,1.16922]
[1727291376044,3.98611,2587.8,2587.5,0.38649]
[1727291376244,0.38649,2587.5,2587.4,0.38649]
[1727291376542,0.38649,2587.5,2587.4,3.2078]
[1727291377334,0.38653,2587.2,2587.1,7.3938]
[1727291377535,0.38653,2587.2,2587.1,3.2078]
[1727291377742,0.38652,2587.3,2587.1,3.2078]
[1727291377947,0.38652,2587.3,2587.1,3.59434]
[1727291378444,0.38653,2587.2,2587.1,3.2078]
[1727291379030,0.38655,2587.1,2586.9,2.22927]
[1727291379242,3.7756,2587.4,2586.8,6.602]
[1727291379243,0.38658,2586.9,2586.8,3.2078]
[1727291379832,0.76888,2586.9,2586.8,3.2078]
[1727291381136,0.76888,2586.9,2586.6,1.16032]
[1727291381351,0.76888,2586.9,2586.7,0.38661]
[1727291381640,0.76888,2586.9,2586.8,3.2078]
[1727291382945,0.76888,2586.9,2586.7,0.38661]
[1727291383149,0.76888,2586.9,2586.8,3.2078]
[1727291383940,0.76888,2586.9,2586.7,0.38661]
[1727291384456,0.38653,2587.3,2587.1,0.38654]
[1727291384641,0.38653,2587.3,2587.1,3.59434]
[1727291384951,0.8012,2587.4,2587.1,5.9078]
[1727291384952,0.38653,2587.2,2587.1,5.9078]
[1727291385347,0.38653,2587.3,2587.1,3.59435]
[1727291385750,0.38653,2587.2,2587.1,3.2078]
[1727291385948,0.38653,2587.2,2587.0,3.08656]
[1727291386247,0.38653,2587.3,2587.0,3.08656]
[1727291386443,1.18771,2587.4,2587.1,0.38655]
[1727291386644,0.8012,2587.4,2587.1,0.38655]
[1727291386845,0.38652,2587.3,2587.1,3.97435]
[1727291387649,0.38653,2587.3,2587.1,3.5878]
[1727291388745,0.38653,2587.2,2587.1,3.5878]
[1727291389258,0.38653,2587.2,2587.1,3.2078]
[1727291389442,0.38658,2586.9,2586.7,3.2078]
[1727291389641,3.02,2587.2,2586.7,3.59441]
[1727291389642,0.96638,2587.1,2586.7,3.59441]
[1727291389851,0.38658,2586.9,2586.7,3.2078]
[1727291390043,0.3993,2587.0,2586.7,3.59441]
[1727291390247,0.78669,2586.9,2586.7,3.59441]
[1727291390451,0.96638,2587.1,2586.8,0.38659]
[1727291390752,0.38657,2587.0,2586.8,0.38659]
[1727291391450,0.38657,2587.0,2586.9,0.38658]
[1727291392347,0.38656,2587.1,2586.9,0.38658]
[1727291392650,0.38656,2587.1,2587.0,0.3815]
[1727291394951,0.38657,2587.0,2586.8,0.38659]
[1727291395455,0.38657,2587.0,2586.8,0.38658]
[1727291396247,3.02,2587.1,2586.8,0.38658]
[1727291396442,0.38657,2587.0,2586.8,0.38658]
[1727291397057,0.38659,2586.8,2586.7,3.995]
[1727291397356,0.38659,2586.8,2586.7,3.2078]
[1727291397746,0.77099,2586.8,2586.7,3.2078]
[1727291398141,4.75748,2586.8,2586.7,3.2078]
[1727291398558,8.62308,2586.8,2586.7,3.2078]
[1727291398750,0.38664,2586.5,2586.4,2.7]
[1727291399558,0.38664,2586.5,2586.4,0.38665]
[1727291399857,0.38665,2586.4,2586.3,3.98526]
[1727291400159,0.38665,2586.4,2586.3,6.68526]
[1727291400355,0.38665,2586.5,2586.4,0.38665]
[1727291400754,0.38663,2586.6,2586.5,0.38663]
[1727291402256,3.98636,2587.2,2586.5,7.853]
[1727291402458,0.79095,2587.1,2587.0,0.38656]
[1727291402662,0.79095,2587.1,2587.0,1.16256]
[1727291402964,0.4044,2587.1,2587.0,1.57066]
[1727291403356,0.79095,2587.1,2587.0,1.57066]
[1727291403552,0.4044,2587.1,2587.0,1.57066]
[1727291404359,0.79095,2587.1,2587.0,1.57066]
[1727291404657,0.79095,2587.1,2587.0,1.16256]
[1727291404863,0.79095,2587.1,2587.0,0.38656]
[1727291405050,0.38656,2587.0,2586.9,3.59437]
[1727291405365,0.79096,2587.1,2586.9,3.59437]
[1727291406061,0.38656,2587.0,2586.9,3.59437]
[1727291406448,0.79095,2587.1,2587.0,0.38656]
[1727291407063,0.4044,2587.1,2587.0,0.38656]
[1727291408557,0.38654,2587.2,2587.1,0.38655]
[1727291408864,0.38655,2587.1,2586.9,3.2078]
[1727291409062,3.02,2587.2,2586.9,3.59437]
[1727291409256,0.38655,2587.1,2586.9,3.59437]
[1727291409659,0.38656,2587.0,2586.9,3.59437]
[1727291409860,0.38654,2587.2,2587.0,0.38655]
[1727291410168,0.38655,2587.1,2586.9,3.2078]
[1727291410557,0.38655,2587.1,2587.0,0.38656]
[1727291411858,0.38654,2587.2,2587.0,0.38656]
[1727291412065,0.38655,2587.1,2587.0,0.38656]
[1727291412365,0.38654,2587.2,2587.0,0.38655]
[1727291412759,1.17893,2587.3,2587.1,0.38654]
[1727291412967,0.3939,2587.3,2587.2,3.59433]
[1727291413172,0.3939,2587.3,2587.2,3.2078]
[1727291413173,0.78042,2587.3,2587.2,3.2078]
[1727291413466,0.3939,2587.3,2587.2,3.59433]
[1727291413667,0.78042,2587.3,2587.2,3.59433]
[1727291414265,0.3939,2587.3,2587.2,3.59433]
[1727291414662,0.78042,2587.3,2587.2,3.59433]
[1727291415656,0.3939,2587.3,2587.2,3.59433]
[1727291415861,3.40647,2587.6,2587.2,3.2078]
[1727291416062,0.3963,2587.7,2587.6,0.38647]
[1727291416275,0.78276,2587.7,2587.6,0.38647]
[1727291416464,0.38647,2587.6,2587.5,3.2078]
[1727291416971,4.37266,2587.6,2587.5,3.2078]
[1727291417170,0.38649,2587.5,2587.4,0.3865]
[1727291418271,0.38649,2587.6,2587.5,0.38648]
[1727291418457,0.38649,2587.6,2587.5,3.2078]
[1727291418965,0.38647,2587.6,2587.5,3.2078]
[1727291419163,0.96626,2587.4,2587.2,3.2078]
[1727291419464,4.76422,2587.3,2587.2,3.2078]
[1727291419666,5.15082,2587.3,2587.2,3.2078]
[1727291419864,4.18452,2587.3,2587.2,3.2078]
[1727291420071,5.15082,2587.3,2587.2,3.2078]
[1727291420269,4.18452,2587.3,2587.2,3.2078]
[1727291420567,5.15082,2587.3,2587.2,3.2078]
[1727291420771,4.18452,2587.3,2587.2,3.2078]
[1727291423070,4.18452,2587.3,2587.2,3.59433]
[1727291423771,4.18452,2587.3,2587.2,3.2078]
[1727291423973,0.38655,2587.1,2587.0,0.77766]
[1727291424278,3.798,2587.3,2586.9,1.39478677]
[1727291424469,3.798,2587.3,2587.2,0.38653]
[1727291425365,4.18452,2587.3,2587.2,0.38653]
[1727291426064,0.38653,2587.2,2587.1,3.59434]
[1727291426269,0.96635,2587.2,2586.8,4.21328677]
[1727291426574,3.02,2586.9,2586.8,0.38658]
[1727291426766,3.40658,2586.9,2586.8,1.39206677]
[1727291426961,0.395,2586.9,2586.8,1.39206677]
[1727291427274,0.78158,2586.9,2586.8,0.38658]
[1727291428477,0.395,2586.9,2586.8,0.38658]
[1727291428674,0.3866,2586.8,2586.7,0.38659]
[1727291429274,0.78159,2586.9,2586.8,0.38659]
[1727291429467,0.395,2586.9,2586.8,0.38659]
[1727291429667,0.395,2586.9,2586.8,3.59439]
[1727291429875,0.451,2587.7,2587.6,0.38647]
[1727291430171,0.38647,2587.7,2587.5,3.2078]
[1727291430369,0.7774,2587.9,2587.7,0.38644]
[1727291430571,1.16384,2587.9,2587.7,0.38644]
[1727291430865,0.38644,2587.8,2587.7,0.38644]
[1727291431072,0.38644,2587.8,2587.6,0.38647]
[1727291431369,0.38647,2587.7,2587.6,0.38647]
[1727291431575,0.38646,2587.8,2587.6,0.38647]
[1727291432069,3.40647,2587.7,2587.5,6.29428]
[1727291432472,3.02,2587.7,2587.6,0.38647]
[1727291432969,7.27126,2587.7,2587.5,5.9078]
[1727291433186,3.02,2587.7,2587.6,0.38647]
[1727291433567,3.7974,2587.9,2587.5,3.2078]
[1727291433762,3.7974,2587.9,2587.8,3.59424]
[1727291434177,4.18383,2587.9,2587.8,3.2078]
[1727291434371,4.18384,2587.9,2587.7,0.38646]
[1727291435071,3.7974,2587.9,2587.8,0.38644]
[1727291435276,4.18383,2587.9,2587.7,0.38645]
[1727291436369,4.18384,2587.9,2587.7,0.38646]
[1727291436572,0.38644,2587.8,2587.6,0.38647]
[1727291436872,4.18383,2587.9,2587.7,0.38645]
[1727291437263,3.7974,2587.9,2587.5,3.2078]
[1727291437466,3.02,2587.7,2587.5,3.2078]
[1727291437667,0.38647,2587.6,2587.5,3.2078]
[1727291438463,3.40647,2587.7,2587.5,3.59429]
[1727291438667,0.38645,2587.8,2587.6,0.38646]
[1727291439272,0.38646,2587.7,2587.6,0.38646]
[1727291439468,3.40646,2587.7,2587.5,3.2078]
[1727291440179,3.40646,2587.7,2587.6,0.38647]
[1727291440572,3.02,2587.7,2587.6,0.38647]
[1727291441268,0.38648,2587.6,2587.5,3.2078]
[1727291441475,0.76298,2587.6,2587.5,3.2078]
[1727291442383,0.76298,2587.6,2587.3,1.38380626]
[1727291442384,0.3865,2587.5,2587.3,1.38380626]
[1727291442572,0.3865,2587.5,2587.4,0.3865]
[1727291442573,1.1789,2587.5,2587.4,0.3865]
[1727291442772,0.3865,2587.4,2587.3,0.76331]
[1727291442974,0.7924,2587.5,2587.3,0.76331]
[1727291443180,0.3865,2587.4,2587.3,0.38651]
[1727291443680,0.3865,2587.4,2587.2,0.38653]
[1727291443884,0.3865,2587.4,2587.3,0.38652]
[1727291444085,0.3865,2587.4,2587.1,3.5754]
[1727291444086,0.38652,2587.3,2587.2,0.38652]
[1727291444388,0.38651,2587.4,2587.2,0.38652]
[1727291444681,0.38651,2587.4,2587.3,0.38652]
[1727291445085,3.8124,2587.5,2587.4,0.3865]
[1727291445086,4.1989,2587.5,2587.4,0.3865]
[1727291445273,0.38651,2587.4,2587.3,0.38651]
[1727291445989,0.3865,2587.4,2587.3,0.38651]
[1727291446372,3.8124,2587.5,2587.4,0.3865]
[1727291446373,4.1989,2587.5,2587.4,0.3865]
[1727291446579,0.3865,2587.4,2587.3,0.38651]
[1727291448192,0.38653,2587.2,2587.1,3.2078]
[1727291448385,0.38656,2587.1,2587.0,0.38656]
[1727291448585,0.77436,2587.1,2587.0,0.38656]
[1727291448778,0.77436,2587.1,2586.9,0.79227]
[1727291448779,0.38656,2587.0,2586.9,0.79227]
[1727291448985,0.38658,2586.9,2586.8,3.98959]
[1727291449177,0.38658,2586.9,2586.8,3.2078]
[1727291449376,0.3866,2586.8,2586.5,4.0143]
[1727291449577,4.38502,2587.0,2586.5,4.0143]
[1727291449578,3.02,2586.7,2586.5,4.0143]
[1727291449789,3.79442,2586.7,2586.6,0.38662]
[1727291449986,3.79442,2586.7,2586.5,4.40093]
[1727291450191,0.38662,2586.6,2586.5,4.0143]
[1727291450488,3.02,2586.6,2586.5,4.40094]
[1727291450685,3.40662,2586.6,2586.5,3.2078]
[1727291453878,7.27302,2586.6,2586.5,3.2078]
[1727291454082,8.23958,2586.6,2586.5,3.2078]
[1727291454283,0.38667,2586.3,2586.1,0.38669]
[1727291454486,3.397,2586.2,2586.1,0.38669]
[1727291454687,3.397,2586.2,2586.1,0.3867]
[1727291455384,3.397,2586.2,2586.0,3.5904]
[1727291455579,0.3867,2586.1,2586.0,3.2078]
[1727291458196,3.397,2586.2,2586.1,0.3867]
[1727291460189,0.3867,2586.1,2586.0,3.2078]
[1727291460393,0.38676,2585.7,2585.6,0.3753]
[1727291460694,0.38678,2585.6,2585.3,3.99761]
[1727291460997,3.02,2585.4,2585.3,3.99761]
[1727291463584,3.02,2585.4,2585.3,3.2078]
[1727291463585,3.4068,2585.4,2585.3,3.2078]
[1727291464187,3.4068,2585.4,2585.2,0.3972]
[1727291464388,3.02,2585.4,2585.3,3.2078]
[1727291464801,3.02,2585.4,2585.3,3.59462]
[1727291465095,3.02,2585.4,2585.3,3.2078]
[1727291465489,3.02,2585.4,2585.3,3.59462]
[1727291467198,3.4068,2585.4,2585.3,3.2078]
[1727291467497,0.38683,2585.2,2585.0,4.36965]
[1727291467695,3.3967,2585.1,2585.0,3.6034]
[1727291468001,3.3967,2585.1,2584.8,0.3727]
[1727291468203,3.02,2584.9,2584.8,0.75958]
[1727291468499,3.02,2584.9,2584.8,0.75959]
[1727291469394,3.02,2585.1,2585.0,0.38686]
[1727291469599,3.02,2585.1,2585.0,3.59466]
[1727291476490,3.40685,2585.1,2585.0,3.2078]
[1727291476692,0.38686,2585.0,2584.8,0.75958]
[1727291476893,3.40688,2584.9,2584.7,4.3701]
[1727291477097,4.36571,2584.9,2584.6,0.38692]
[1727291477299,4.36571,2584.9,2584.5,0.3914]
[1727291477300,3.40692,2584.7,2584.5,0.77833]
[1727291477696,3.40692,2584.7,2584.5,3.47833]
[1727291477901,3.40692,2584.7,2584.5,0.77833]
[1727291478212,3.02,2584.7,2584.4,4.38935]
[1727291478404,3.40694,2584.5,2584.4,3.2078]
[1727291478907,3.40694,2584.5,2584.4,3.59475]
[1727291479198,3.02,2584.6,2584.4,3.2078]
[1727291479397,0.3785,2584.9,2584.5,0.3754]
[1727291479603,3.40687,2585.0,2584.8,3.59468]
[1727291479604,3.77567,2585.0,2584.8,3.59468]
[1727291480002,3.3888,2585.0,2584.9,0.38688]
[1727291480402,3.77566,2585.0,2584.9,0.4018]
[1727291480900,3.77566,2585.0,2584.9,0.78868]
[1727291481200,3.77566,2585.0,2584.9,0.4018]
[1727291481400,3.77566,2585.0,2584.9,0.78868]
[1727291483209,3.3888,2585.0,2584.9,0.78868]
[1727291483505,3.40686,2585.1,2585.0,0.38686]
[1727291483702,3.02,2585.1,2585.0,0.38686]
[1727291484105,3.2078,2585.5,2585.4,0.3868]
[1727291484304,3.02,2585.6,2585.4,0.3868]
[1727291484305,3.79798,2585.6,2585.4,0.3868]
[1727291484706,0.3868,2585.5,2585.1,3.2078]
[1727291484902,3.4112,2585.6,2585.3,0.38681]
[1727291484903,3.02,2585.4,2585.3,0.38681]
[1727291486208,3.02,2585.4,2585.3,0.38682]
[1727291486412,3.40681,2585.4,2585.2,3.08683]
[1727291486609,3.40681,2585.4,2585.2,2.7]
[1727291486911,3.02,2585.4,2585.3,0.38682]
[1727291488102,0.77798,2585.6,2585.4,0.38679]
[1727291488103,3.79798,2585.6,2585.4,0.38679]
[1727291488304,3.79798,2585.6,2585.4,3.59459]
[1727291488811,3.4112,2585.6,2585.4,3.59459]
[1727291489006,3.4112,2585.6,2585.4,3.5946]
[1727291489314,3.79797,2585.6,2585.5,0.38679]
[1727291489506,0.38679,2585.5,2585.4,3.59459]
[1727291489700,3.4112,2585.6,2585.5,0.38679]
[1727291489701,3.79798,2585.6,2585.5,0.38679]
[1727291490102,3.79798,2585.6,2585.4,3.5946]
[1727291490414,3.79798,2585.6,2585.5,0.38679]
[1727291491202,3.79798,2585.6,2585.4,3.59459]
[1727291491512,3.4112,2585.6,2585.5,0.38679]
[1727291491917,3.4112,2585.6,2585.4,3.59459]
[1727291491918,3.79798,2585.6,2585.4,3.59459]
[1727291492305,3.79798,2585.6,2585.5,0.38679]
[1727291493918,3.79798,2585.6,2585.4,3.59459]
[1727291495213,3.79798,2585.6,2585.5,0.38679]
[1727291495713,3.4112,2585.6,2585.5,0.38679]
[1727291496223,3.40675,2585.8,2585.6,0.38676]
[1727291496415,0.38676,2585.7,2585.6,0.38676]
[1727291496716,3.02,2585.8,2585.7,0.38676]
[1727291497214,1.14894,2585.9,2585.8,0.38674]
[1727291497419,0.38674,2585.8,2585.7,0.38675]
[1727291497614,1.14893,2585.9,2585.8,0.38674]
[1727291497810,0.7622,2585.9,2585.5,0.7767]
[1727291498016,1.14894,2585.9,2585.5,0.7767]
[1727291498216,1.14894,2585.9,2585.7,0.38674]
[1727291499620,0.38676,2585.7,2585.6,0.38676]
[1727291500419,3.40675,2585.8,2585.7,0.38676]
[1727291500617,0.38676,2585.7,2585.6,0.38676]
[1727291501014,3.40675,2585.8,2585.7,0.38676]
[1727291502517,0.38676,2585.7,2585.6,0.38676]
[1727291503118,3.40675,2585.8,2585.7,0.38676]
[1727291504214,3.02,2585.8,2585.7,0.38676]
[1727291504411,1.14894,2585.9,2585.8,0.38674]
[1727291504814,0.7622,2585.9,2585.8,3.59454]
[1727291505219,0.3893,2585.9,2585.8,3.59454]
[1727291505812,0.77603,2585.9,2585.8,3.59454]
[1727291506020,0.3893,2585.9,2585.8,3.59454]
[1727291506716,0.77603,2585.9,2585.8,3.59454]
[1727291507326,0.77603,2585.9,2585.8,3.2078]
[1727291508124,0.38676,2585.7,2585.6,0.38676]
[1727291508519,0.38677,2585.6,2585.5,3.2078]
[1727291508818,3.40677,2585.6,2585.5,3.2078]
[1727291509421,3.40677,2585.6,2585.5,3.59459]
[1727291510025,3.40677,2585.6,2585.5,3.2078]
[1727291510226,3.80857,2585.6,2585.5,3.59459]
[1727291510614,3.4043,2585.8,2585.7,0.38676]
[1727291510914,3.02,2585.8,2585.7,0.38676]
[1727291511221,0.38675,2585.8,2585.7,0.38676]
[1727291516627,0.38674,2585.8,2585.7,0.38675]
[1727291518532,4.77793,2585.9,2585.5,3.2078]
[1727291518824,0.38675,2585.8,2585.7,0.38675]
[1727291519122,4.19784,2585.9,2585.8,0.38674]
[1727291521022,3.8111,2585.9,2585.5,3.2078]
[1727291521214,0.38675,2585.8,2585.7,0.38675]
[1727291521623,4.19784,2585.9,2585.8,0.38674]
[1727291522627,0.38675,2585.8,2585.7,0.38675]
[1727291522823,4.19784,2585.9,2585.8,0.38674]
[1727291524526,0.3893,2585.9,2585.8,3.59454]
[1727291524733,0.3867,2586.2,2586.1,0.3867]
[1727291524928,0.77326,2586.4,2586.3,0.38667]
[1727291525125,0.77326,2586.4,2586.2,0.78208]
[1727291525331,0.3866,2586.4,2586.3,0.38667]
[1727291525728,0.77326,2586.4,2586.3,0.38667]
[1727291525932,0.77326,2586.4,2586.2,0.78207]
[1727291526232,0.3866,2586.4,2586.2,0.78207]
[1727291526433,0.77326,2586.4,2586.3,0.38667]
[1727291526826,0.77326,2586.4,2586.2,0.78207]
[1727291527525,0.3866,2586.4,2586.3,0.38667]
[1727291527726,0.3866,2586.4,2586.3,1.14677]
[1727291528628,0.77325,2586.4,2586.3,1.14677]
[1727291528827,0.3866,2586.4,2586.3,1.14677]
[1727291529529,0.77325,2586.4,2586.3,0.7601]
[1727291529727,0.3866,2586.4,2586.3,1.14677]
[1727291530339,0.77333,2586.6,2586.4,0.38665]
[1727291530634,3.6034,2586.8,2586.6,0.38662]
[1727291530635,0.3825,2586.7,2586.6,0.38662]
[1727291530833,0.96639,2587.1,2586.7,0.38661]
[1727291530834,3.4143,2587.0,2586.7,0.38661]
[1727291531035,0.38658,2586.9,2586.8,3.59439]
[1727291531435,0.38658,2586.9,2586.8,3.2078]
[1727291532732,0.38658,2586.9,2586.8,3.59439]
[1727291533035,0.38658,2586.9,2586.8,3.2078]
[1727291535137,1.35303,2586.9,2586.8,3.2078]
[1727291535337,0.38661,2586.7,2586.5,0.38662]
[1727291535527,3.40661,2586.7,2586.5,0.38662]
[1727291535732,0.75992,2586.6,2586.5,0.38662]
[1727291536134,0.75993,2586.6,2586.5,0.38664]
[1727291536334,0.38664,2586.5,2586.4,3.2078]
[1727291536535,3.81224,2586.5,2586.4,3.2078]
[1727291537243,3.81224,2586.5,2586.3,0.38666]
[1727291537541,0.38671,2586.0,2585.8,3.2078]
[1727291537747,3.78503,2585.9,2585.8,3.59454]
[1727291537935,3.3983,2585.9,2585.8,6.29454]
[1727291538135,0.3783,2585.9,2585.8,6.29454]
[1727291538545,0.3783,2585.9,2585.8,3.59454]
[1727291539051,0.38669,2586.2,2586.1,0.3867]
[1727291539239,0.76499,2586.2,2586.1,0.3867]
[1727291539743,0.76499,2586.2,2586.0,0.38671]
[1727291539744,0.38671,2586.1,2586.0,0.38671]
[1727291540141,0.3783,2586.2,2586.1,0.3867]
[1727291540142,0.76499,2586.2,2586.1,0.3867]
[1727291540443,0.76499,2586.2,2586.1,3.2078]
[1727291540444,0.76498,2586.2,2586.1,3.2078]
[1727291541539,0.76498,2586.2,2586.1,3.5945]
[1727291542234,0.76498,2586.2,2586.1,3.2078]
[1727291542437,0.38672,2586.0,2585.8,3.2078]
[1727291542640,3.02,2586.1,2586.0,0.38671]
[1727291542944,0.3783,2586.2,2586.1,0.3867]
[1727291543141,0.3783,2586.2,2586.1,3.5945]
[1727291543747,0.4056,2586.5,2586.1,7.0742]
[1727291543748,0.79224,2586.5,2586.1,7.0742]
[1727291543939,1.19194,2586.5,2586.4,0.38665]
[1727291544444,0.38666,2586.4,2586.3,0.38666]
[1727291545763,0.38668,2586.2,2586.1,6.29448]
[1727291545948,0.38668,2586.2,2586.1,3.59448]
[1727291546154,0.38668,2586.2,2586.1,3.5945]
[1727291547451,3.40668,2586.3,2586.2,0.38668]
[1727291547851,3.40665,2586.4,2586.3,0.38667]
[1727291548050,3.02,2586.4,2586.3,0.38667]
[1727291548555,0.8053,2586.5,2586.4,0.38665]
[1727291548744,0.8053,2586.5,2586.4,3.59445]
[1727291549147,0.3997,2586.5,2586.4,3.59445]
[1727291549348,0.78634,2586.5,2586.4,3.98425]
[1727291549553,0.3997,2586.5,2586.4,3.98425]
[1727291550154,0.3997,2586.5,2586.4,0.77645]
[1727291550359,3.40663,2586.6,2586.5,0.38664]
[1727291550861,0.38664,2586.5,2586.4,3.98424]
[1727291551454,0.38664,2586.5,2586.4,3.59444]
[1727291551766,0.3806,2586.5,2586.4,3.59444]
[1727291553059,0.76724,2586.5,2586.4,3.59444]
[1727291553354,0.3806,2586.5,2586.4,3.59444]
[1727291553856,0.76724,2586.5,2586.4,3.59444]
[1727291554049,0.3806,2586.5,2586.4,3.59444]
[1727291558163,0.76724,2586.5,2586.4,3.59444]
[1727291558360,0.3806,2586.5,2586.4,3.59444]
[1727291559858,0.76724,2586.5,2586.4,3.59444]
[1727291560961,0.3806,2586.5,2586.4,3.59444]
[1727291561561,0.76724,2586.5,2586.4,3.59444]
[1727291564268,2.15724,2586.5,2586.4,3.59444]
[1727291565066,1.7706,2586.5,2586.4,3.59444]
[1727291565362,2.15724,2586.5,2586.4,3.59444]
[1727291566066,2.15724,2586.5,2586.4,3.2078]
[1727291566264,0.96668,2586.3,2586.1,5.00850626]
[1727291566462,0.38668,2586.2,2586.1,4.21480626]
[1727291566662,0.38668,2586.2,2586.1,3.5945]
[1727291567265,0.79378,2586.3,2586.2,0.38668]
[1727291567469,0.38667,2586.3,2586.2,0.38668]
[1727291567664,0.79325,2586.4,2586.3,0.38667]
[1727291567861,0.4066,2586.4,2586.3,0.38667]
[1727291568285,0.79325,2586.4,2586.3,0.38667]
[1727291569270,0.38661,2586.8,2586.7,0.3866]
[1727291569464,0.38661,2586.8,2586.6,0.38661]
[1727291569465,0.38662,2586.7,2586.6,0.38661]
[1727291569660,0.38662,2586.7,2586.6,0.78811]